Cogmind - Beta 9.6 @@@ ROGUE MODE // 2020.08.30 @ 09:24:15 Player: Sandwich Result: Destroyed by S-43 Plague with Heavy Machine Gun Performance ------------- Evolutions (9) 4500 Regions Visited (21) 4200 Robots Destroyed (214) 1070 Value Destroyed (10937) 10937 Prototype IDs (27) 540 Alien Tech Used (1) 200 Bonus (3158) 3158 TOTAL SCORE: 24605 Bonus ------- High Alert Combat Kills 115 Follower Combat Kills 185 Met Data Miner 300 Met Warlord at Base 500 MAIN.C Attacked Warlord 500 Warlord Defense Kill 1646 Friendly Fire -88 Cogmind --------- Core Integrity 0/1600 Matter 295/300 Energy 99/100 System Corruption 45% Temperature Cool (0) Movement Core (50) Location -1/Access Parts ------- > --- POWER (2) -------- (None) > --- PROPULSION (6) --- (None) > --- UTILITY (11) ----- 0b10 Decoder Chip [Looter] Advanced Targeting Computer Advanced Target Analyzer Improved Weapon Cycler > --- WEAPON (6) ------- (None) > --- INVENTORY (4) ---- Vortex Chain Reactor Matter Compressor (0) Advanced Remote Shield Peak State ------------ > --- POWER ------------ Particle Reactor Quantum Reactor > --- PROPULSION ------- Heavy Siege Treads Heavy Siege Treads Advanced Heavy Treads > --- UTILITY ---------- Advanced Cooling System High-capacity Storage Unit High-capacity Storage Unit High-capacity Storage Unit 0b10 Decoder Chip [Looter] Advanced Targeting Computer Advanced Targeting Computer Advanced Targeting Computer Kinecellerator Layered Heavy Armor Plating > --- WEAPON ----------- Heavy Machine Gun KE Penetrator Hypervelocity Gauss Cannon Heavy Gauss Cannon Linear Accelerator Force Lance > --- INVENTORY -------- Vortex Chain Reactor Myomer Leg Compact Wheel Advanced Cooling System Advanced Cooling System High-capacity Storage Unit Matter Compressor Advanced Armor Integrity Analyzer Improved Weapon Cycler Improved Weapon Cycler Layered Medium Armor Plating Improved Powered Armor Experimental Focal Shield Advanced Remote Shield Vortex Rail Vortex Rail Linear Accelerator Precision Rocket Launcher Micro-nuke Launcher Vortex Lance Vortex Lance [Rating: 154] Favorites ----------- Power Micro Fission Core Engine Improved Ion Engine Power Core Micro Fission Core Reactor Fusion Reactor Propulsion Advanced Treads Treads Advanced Treads Leg Myomer Leg Wheel Armored Huge Wheel Hover Unit Improved Antigrav System Utility High-capacity Storage Unit Device Advanced Cooling System Storage High-capacity Storage Unit Processor Advanced Targeting Computer Protection Layered Medium Armor Plating Weapon Gauss Rifle Energy Gun High-powered Shock Rifle Energy Cannon HERF Cannon Ballistic Gun Gauss Rifle Ballistic Cannon Heavy Gauss Cannon Launcher Precision Rocket Launcher Piercing Weapon Force Lance Build | -11 -10 -9 -9 -8 -7 -6 -6 -6 -6 -5 -5 -5 -5 -5 -4 -4 -4 -4 -3 -2 -1 ------- Run | Scr Mat Mat Min Mat Fac Fac Low Low Dat Pro Fac Upp Upp War Pro Fac Upp Upp Res Res Acc Slots Evolved 18 | . . 2 . 2 2 2 . . . . 2 . . . . 2 . . 2 2 2 Power 1 | . . . . . . . . . . . . . . . . 1 . . . . . Propulsion 4 | . . . . . 1 1 . . . . . . . . . . . . . 1 1 Utility 9 | . . 2 . . 1 . . . . . 1 . . . . 1 . . 2 1 1 Weapon 4 | . . . . 2 . 1 . . . . 1 . . . . . . . . . . Parts Attached 218 | 7 6 8 . 24 4 2 . 1 . 8 26 5 . 16 12 28 10 3 4 3 51 Power 20 | 1 1 1 . 1 1 . . . . . 3 . . . . 4 1 . 1 1 5 Engine 3 | 1 1 1 . . . . . . . . . . . . . . . . . . . Core 7 | . . . . 1 1 . . . . . 1 . . . . 2 . . . . 2 Reactor 10 | . . . . . . . . . . . 2 . . . . 2 1 . 1 1 3 Propulsion 43 | 3 . 2 . 3 2 1 . . . 1 2 2 . 4 5 5 1 . . . 12 Treads 25 | 1 . 1 . 3 1 1 . . . 1 2 . . 3 4 4 1 . . . 3 Leg 2 | . . . . . . . . . . . . . . . 1 . . . . . 1 Wheel 9 | 2 . 1 . . 1 . . . . . . 2 . 1 . 1 . . . . 1 Hover 7 | . . . . . . . . . . . . . . . . . . . . . 7 Flight . | . . . . . . . . . . . . . . . . . . . . . . Utility 74 | 1 3 5 . 7 1 . . . . 3 11 2 . 4 2 7 5 . 2 2 19 Device 23 | . 1 2 . 2 . . . . . 1 7 . . 3 . 1 . . . 1 5 Storage 14 | 1 . 1 . 1 . . . . . . . . . 1 . 3 2 . . . 5 Processor 12 | . 2 2 . . . . . . . . 1 1 . . 1 . . . 1 . 4 Hackware . | . . . . . . . . . . . . . . . . . . . . . . Protection 25 | . . . . 4 1 . . . . 2 3 1 . . 1 3 3 . 1 1 5 Artifact . | . . . . . . . . . . . . . . . . . . . . . . Weapon 81 | 2 2 . . 13 . 1 . 1 . 4 10 1 . 8 5 12 3 3 1 . 15 Energy Gun 10 | 1 . . . . . . . . . . 1 . . 1 . 1 . . . . 6 Energy Cannon 3 | . . . . . . . . . . . . . . . . 2 . . . . 1 Ballistic Gun 43 | 1 2 . . 13 . 1 . 1 . 4 6 1 . 4 3 5 1 . . . 1 Ballistic Cannon 11 | . . . . . . . . . . . 2 . . . . 3 1 3 1 . 1 Launcher 9 | . . . . . . . . . . . 1 . . 2 2 . . . . . 4 Special Weapon . | . . . . . . . . . . . . . . . . . . . . . . Impact Weapon . | . . . . . . . . . . . . . . . . . . . . . . Slashing Weapon . | . . . . . . . . . . . . . . . . . . . . . . Piercing Weapon 5 | . . . . . . . . . . . . . . 1 . 1 1 . . . 2 Special Melee Weapon . | . . . . . . . . . . . . . . . . . . . . . . Unidentified Prototypes 12 | . . . . . 1 . . . . . 3 . . 5 . 1 1 . . . 1 Parts Lost 95 | . . . . 6 . . . 1 . 6 6 . . 1 13 6 1 2 2 1 50 Power 7 | . . . . . . . . . . . . . . . . 1 . . . . 6 Propulsion 20 | . . . . . . . . . . 1 1 . . . 4 1 . . . . 13 Utility 24 | . . . . 3 . . . . . 1 1 . . . 1 2 . . . 1 15 Weapon 44 | . . . . 3 . . . 1 . 4 4 . . 1 8 2 1 2 2 . 16 Highest Loss Streak 20 | . . . . 3 . . . 1 . 3 2 . . 1 6 3 1 2 2 1 20 Average Slot Usage (%) 88 | . 96 94 100 99 84 86 86 86 86 87 93 95 100 99 92 79 87 88 89 80 65 Core 3 | . . . . 7 7 6 6 6 6 6 4 . . . . 5 6 5 4 1 . Reactor 2 | . . . . . . . . . . . . 5 5 5 5 2 3 5 4 6 5 Treads 10 | . 14 11 11 9 7 13 13 13 13 13 11 11 11 10 18 14 5 5 4 4 5 Wheel 5 | . 14 11 11 9 7 6 6 6 6 6 5 6 11 11 4 . 5 5 4 4 . Device 7 | . 3 8 11 9 7 6 6 6 6 6 14 15 11 10 6 4 5 5 4 8 5 Storage 12 | . 14 11 11 10 15 13 13 13 13 13 11 11 11 13 17 15 15 15 14 13 10 Processor 7 | . 7 19 22 8 . . . . . . 1 1 5 5 5 10 10 10 14 13 15 Protection 4 | . . . . 7 7 6 6 6 6 7 5 4 5 3 2 4 4 5 9 6 3 Ballistic Gun 22 | . 24 22 22 35 30 33 33 33 33 32 32 35 35 34 24 7 15 10 8 4 2 Ballistic Cannon 3 | . . . . . . . . . . . . . . . . 3 12 14 13 13 7 Piercing Weapon 1 | . . . . . . . . . . . . . . . . 3 . 5 4 4 4 Naked Turns . | . . . . . . . . . . . . . . . . . . . . . . Heaviest Build 218 | 12 25 46 46 83 96 99 99 99 99 102 128 128 124 154 139 162 173 176 186 199 218 Greatest Support 210 | 26 10 20 12 20 28 28 28 28 28 28 28 28 28 57 101 127 28 28 28 28 210 Greatest Overweight (x) 10 | 1 2 4 3 6 7 3 3 3 3 3 4 4 4 10 4 5 6 6 6 7 7 Average Overweight (x) 3 | . 1 3 3 4 3 3 3 3 3 3 3 3 4 4 2 1 5 5 6 6 2 Largest Inventory Capacity 28 | 6 6 14 12 20 20 20 20 20 20 20 20 20 20 28 28 28 28 28 28 28 28 Average Capacity 22 | 5 6 11 12 13 20 20 20 20 20 20 20 20 20 23 28 28 28 28 28 28 23 Most Carried 28 | 3 6 12 11 20 20 20 20 20 19 20 20 20 20 28 28 28 28 27 27 27 26 Average Carried 20 | 2 5 10 11 12 19 18 20 19 19 18 17 19 20 23 26 27 27 25 25 25 16 Final Capacity 28 | 6 6 12 12 20 20 20 20 20 20 20 20 20 20 28 28 28 28 28 28 28 4 Final Carried 28 | 3 6 11 11 20 20 20 20 19 19 15 20 20 20 28 24 28 27 25 26 26 4 Class Distribution -------------------- 43% | Hauler-Executioner 17% | Scavenger-Tank 12% | Hauler-Mutant 9% | Hauler-Gunner 6% | Mutant 3% | Scavenger-Mutant 3% | Scavenger-Gunner Dominant Class ---------------- Mutant | -10/Materials Mutant | -9/Materials Scavenger-Mutant | -9/Mines Scavenger-Gunner | -8/Materials Scavenger-Tank | -7/Factory Scavenger-Tank | -6/Factory Scavenger-Tank | -6/Lower Caves Scavenger-Tank | -6/Lower Caves Scavenger-Tank | -6/Data Miner Scavenger-Tank | -5/Proximity Caves Hauler-Executioner | -5/Factory Hauler-Executioner | -5/Upper Caves Hauler-Executioner | -5/Upper Caves Hauler-Executioner | -5/Warlord Hauler-Executioner | -4/Proximity Caves Hauler-Mutant | -4/Factory Hauler-Executioner | -4/Upper Caves Hauler-Executioner | -4/Upper Caves Hauler-Executioner | -3/Research Hauler-Gunner | -2/Research Hauler-Gunner | -1/Access Resources | -11 -10 -9 -9 -8 -7 -6 -6 -6 -6 -5 -5 -5 -5 -5 -4 -4 -4 -4 -3 -2 -1 ----------- Run | Scr Mat Mat Min Mat Fac Fac Low Low Dat Pro Fac Upp Upp War Pro Fac Upp Upp Res Res Acc Matter Collected 8430 | 223 113 168 16 910 . . 149 217 . 431 916 399 221 368 843 807 894 165 308 248 1034 Remotely . | . . . . . . . . . . . . . . . . . . . . . . Salvage Created 9624 | . 114 279 72 962 . . 107 264 . 407 1206 255 280 513 995 1184 814 119 308 248 1497 Parts 438 | . 7 18 8 68 . . 7 5 . 32 38 13 7 24 43 65 31 1 15 5 51 Haulers Intercepted . | . . . . . . . . . . . . . . . . . . . . . . Recyclers Shooed 2 | . 1 . . . . . . . . . 1 . . . . . . . . . . Parts Field Recycled 12 | . 12 . . . . . . . . . . . . . . . . . . . . Retrieved Matter 59 | . 59 . . . . . . . . . . . . . . . . . . . . Parts Self-Destructed 198 | . . . . . . . 7 5 . 33 . 12 7 72 40 . 21 1 . . . Prevented 7 | . . . . . . . . 2 . 1 . . . 4 . . . . . . . Kills | -11 -10 -9 -9 -8 -7 -6 -6 -6 -6 -5 -5 -5 -5 -5 -4 -4 -4 -4 -3 -2 -1 ------- Run | Scr Mat Mat Min Mat Fac Fac Low Low Dat Pro Fac Upp Upp War Pro Fac Upp Upp Res Res Acc Combat Hostiles Destroyed 204 | . 3 5 2 28 . . 4 5 . 10 15 4 4 14 29 27 9 2 5 3 35 Melee 17 | . . . . . . . . . . . . . . . . 11 . . . . 6 Guns 122 | . 3 5 2 28 . . 4 5 . 10 13 4 4 7 17 4 4 1 1 1 9 Cannons 25 | . . . . . . . . . . . . . . . . 9 5 1 4 2 4 AOE 40 | . . . . . . . . . . . 2 . . 7 12 3 . . . . 16 Classes Destroyed 17 | . 1 2 . 4 . . . 1 . 3 1 . . 3 . 1 1 . . . . Worker 1 | . . . . 1 . . . . . . . . . . . . . . . . . Builder 1 | . . . . . . . . . . . . . . . . 1 . . . . . Recycler 5 | . . . . . . . . . . . 2 . . . . 1 . . . . 2 Operator 1 | . . . . 1 . . . . . . . . . . . . . . . . . Watcher 2 | . . 2 . . . . . . . . . . . . . . . . . . . Swarmer 61 | . . . . 12 . . 4 . . 6 . . . 2 13 13 1 . . . 10 Saboteur 3 | . . . . . . . . . . . . . . 2 1 . . . . . . Grunt 68 | . 3 2 2 8 . . . 4 . . 9 2 4 4 8 2 4 . 1 2 13 Brawler 3 | . . . . . . . . 1 . . . . . . 2 . . . . . . Duelist 2 | . . . . 1 . . . . . . . . . 1 . . . . . . . Sentry 24 | . . 3 . 7 . . . . . . 4 1 . . 1 3 1 . 2 1 1 Specialist 1 | . . . . . . . . . . . . . . 1 . . . . . . . Hunter 11 | . . . . . . . . . . 2 . 1 . . 2 . 2 2 . . 2 Programmer 27 | . . . . . . . . . . 1 2 . . 2 2 9 . . 2 . 9 Behemoth 1 | . . . . . . . . . . 1 . . . . . . . . . . . Executioner 2 | . . . . . . . . . . . . . . 2 . . . . . . . Mutant 1 | . . . . . . . . . . . . . . . . . 1 . . . . Best Kill Streak 12 | . 2 2 2 12 . . 4 4 . 4 5 2 4 7 9 7 6 2 1 2 7 Combat Bots Only 11 | . 2 2 2 11 . . 4 4 . 4 5 2 4 7 9 6 6 2 1 2 7 Max Kills in Single Turn 6 | . 1 1 1 2 . . 2 1 . 1 2 1 2 5 3 6 2 1 1 1 4 Gunslinging 1 | . . . . 1 . . . . . . 1 . . . . . . . . . . Exploded 4 | . . . . . . . . . . . 2 . . 3 3 3 . . . . 4 Melee 1 | . . . . . . . . . . . . . . . . 1 . . . . 1 Uniques/NPCs Destroyed . | . . . . . . . . . . . . . . . . . . . . . . Combat | -11 -10 -9 -9 -8 -7 -6 -6 -6 -6 -5 -5 -5 -5 -5 -4 -4 -4 -4 -3 -2 -1 -------- Run | Scr Mat Mat Min Mat Fac Fac Low Low Dat Pro Fac Upp Upp War Pro Fac Upp Upp Res Res Acc Damage Taken 21278 | . 108 142 . 1411 . . 139 533 . 1164 1159 242 155 249 1788 2864 1174 528 462 231 8929 Core 2523 | . 24 14 . 94 . . 16 57 . 134 115 . 21 18 124 128 86 33 46 . 1613 Absorbed by Shields 260 | . . . . . . . . . . . . . . 208 52 . . . . . . Core Remaining (%) 88 | 100 90 . 96 82 100 . . . . 75 . . . . 72 . . 78 96 100 . Volleys Fired 380 | 1 8 11 2 68 3 3 5 15 . 24 32 8 6 7 37 27 33 8 12 5 65 Largest 6 | 2 2 2 2 4 4 5 5 5 . 5 6 6 6 6 6 6 6 5 5 4 5 Hottest 283 | 70 46 46 46 92 86 109 109 109 . 122 168 168 168 183 180 272 272 211 254 221 283 Shots Fired 1480 | 2 16 22 4 267 12 15 25 75 . 115 184 48 35 40 149 105 123 33 49 20 141 Gun 1223 | 2 16 22 4 267 12 15 25 75 . 115 184 48 35 35 135 64 68 19 21 5 56 Cannon 216 | . . . . . . . . . . . . . . . . 41 55 14 28 15 63 Launcher 41 | . . . . . . . . . . . . . . 5 14 . . . . . 22 Special . | . . . . . . . . . . . . . . . . . . . . . . Kinetic 1406 | 1 16 22 4 267 12 15 25 75 . 115 184 48 35 35 135 105 123 33 49 20 87 Thermal 15 | 1 . . . . . . . . . . . . . . . . . . . . 14 Explosive 41 | . . . . . . . . . . . . . . 5 14 . . . . . 22 Electromagnetic 3 | . . . . . . . . . . . . . . . . . . . . . 3 Entropic 15 | . . . . . . . . . . . . . . . . . . . . . 15 Robot Hit Streak 27 | 1 7 9 5 20 4 11 3 27 . 11 15 17 12 9 11 14 7 5 12 12 25 Robot Miss Streak 11 | 1 4 2 1 11 1 2 2 3 . 6 7 4 4 2 8 2 4 3 2 1 3 Penetration Max 1 | . . . . . . . . . . . . . 1 1 1 1 1 . . 1 1 Secondary Targets 24 | . . . . 8 . . 1 3 . 4 3 . 1 . 4 . . . . . . Max Gunslinging Chain 1 | . . . . 1 . . 1 1 . 1 1 . 1 . 1 . . . . . . Shots Hit Robots 1085 | 1 12 15 4 185 8 13 13 64 . 81 144 32 30 21 86 106 77 19 34 13 127 Core Hits 612 | . 8 13 5 66 . 2 9 24 . 47 105 19 18 35 75 47 33 5 11 6 84 Critical Hits 68 | . . . . 1 . . . 1 . . . 1 2 1 3 21 13 4 6 5 10 Critical Kills 29 | . . . . . . . . . . . . . . 1 1 12 6 2 3 2 2 Critical Parts Destroyed 36 | . . . . 1 . . . 1 . . . 1 2 . 2 9 7 2 1 2 8 Melee Attacks 108 | . . . . . . . . . . . . . . . . 55 8 . 1 . 44 Impact . | . . . . . . . . . . . . . . . . . . . . . . Slashing . | . . . . . . . . . . . . . . . . . . . . . . Piercing 92 | . . . . . . . . . . . . . . . . 55 8 . 1 . 28 Entropic 16 | . . . . . . . . . . . . . . . . . . . . . 16 Sneak Attacks 1 | . . . . . . . . . . . . . . . . 1 . . . . . Combat Hostiles . | . . . . . . . . . . . . . . . . . . . . . . Follow-up Attacks . | . . . . . . . . . . . . . . . . . . . . . . Damage Inflicted 27885 | . 212 197 51 1695 42 161 122 770 . 917 2983 588 543 1731 3296 3227 2179 264 876 340 7691 Guns 13759 | . 212 197 51 1695 42 161 122 770 . 917 2557 588 543 574 1378 900 733 193 465 162 1499 Cannons 3142 | . . . . . . . . . . . . . . . . 706 508 71 411 178 1268 Explosions 7448 | . . . . . . . . . . . 426 . . 1157 1918 397 . . . . 3550 Melee 3532 | . . . . . . . . . . . . . . . . 1224 938 . . . 1370 Ramming 4 | . . . . . . . . . . . . . . . . . . . . . 4 Kinetic 15880 | . 212 197 51 1695 42 161 122 770 . 917 2557 588 543 574 1378 1606 1241 264 876 340 1746 Thermal 1088 | . . . . . . . . . . . 426 . . . . 397 . . . . 265 Explosive 6536 | . . . . . . . . . . . . . . 1157 1918 . . . . . 3461 Electromagnetic 176 | . . . . . . . . . . . . . . . . . . . . . 176 Impact . | . . . . . . . . . . . . . . . . . . . . . . Slashing . | . . . . . . . . . . . . . . . . . . . . . . Piercing 2883 | . . . . . . . . . . . . . . . . 1224 938 . . . 721 Entropic 1318 | . . . . . . . . . . . . . . . . . . . . . 1318 Highest Corruption 45 | . . . . . . . . . . 2 4 4 4 4 1 10 10 10 4 . 45 Average Corruption 6 | . . . . . . . . . . 1 1 4 4 4 1 5 10 10 3 . 20 Corruption Purged . | . . . . . . . . . . . . . . . . . . . . . . Effects 205 | . . . . . . . . . . 6 3 15 9 2 3 31 57 26 2 . 51 Message Errors 34 | . . . . . . . . . . 1 . 5 4 . 1 3 6 4 . . 10 Matter Fused 25 | . . . . . . . . . . . . 3 . . . 4 6 6 . . 6 Heat Flow Errors 21 | . . . . . . . . . . 1 1 2 . 1 . 3 5 3 1 . 4 Energy Discharges 16 | . . . . . . . . . . . 1 1 1 1 . 2 5 3 . . 2 Parts Rejected 3 | . . . . . . . . . . . . . . . . . . 1 . . 2 Data Loss (minor) 17 | . . . . . . . . . . 2 1 2 1 . 1 1 5 1 1 . 2 Data Loss (major) 1 | . . . . . . . . . . . . . . . . . 1 . . . . Misfires 2 | . . . . . . . . . . . . . . . . 1 1 . . . . Misdirections 17 | . . . . . . . . . . . . . . . . 2 9 5 . . 1 Targeting Errors 59 | . . . . . . . . . . 1 . 2 2 . 1 13 15 3 . . 22 Weapon Failures 10 | . . . . . . . . . . 1 . . 1 . . 2 4 . . . 2 Overload Shots . | . . . . . . . . . . . . . . . . . . . . . . Overflow Damage 1284 | . . . . . . . . . . . 129 . . 9 102 347 417 . . . 280 Projectiles 98 | . . . . . . . . . . . . . . . . 50 . . . . 48 Explosions 468 | . . . . . . . . . . . 129 . . 9 102 152 . . . . 76 Melee 718 | . . . . . . . . . . . . . . . . 145 417 . . . 156 Knockbacks 29 | . . . . . . . . . . . . . . . . 5 1 2 4 . 17 Impact . | . . . . . . . . . . . . . . . . . . . . . . Kinetic 28 | . . . . . . . . . . . . . . . . 5 1 2 4 . 16 Secondary 1 | . . . . . . . . . . . . . . . . . . . . . 1 Self-Inflicted Damage 463 | . . . . . . . . . . . . . . 18 123 147 . . . . 175 Shots 13 | . . . . . . . . . . . . . . 1 5 2 . . . . 5 Rammed 2 | . . . . . . . . . . . . . . . . . . . . . 2 Targets Rammed 2 | . . . . . . . . . . . . . . . . . . . . . 2 Kicked . | . . . . . . . . . . . . . . . . . . . . . . Crushed . | . . . . . . . . . . . . . . . . . . . . . . Highest Temperature 430 | 30 6 2 . 273 . . . 65 . 162 311 152 . 58 45 346 430 233 163 166 346 Average Temperature 96 | 18 2 2 . 96 . . . 34 . 23 133 82 . 58 21 122 156 81 55 88 84 Received Heat Transfer 2430 | . 54 54 . 468 . . . 252 . 48 369 45 57 18 162 153 117 . 39 9 585 Effects 5 | . . . . 1 . . . . . . . . . . . 1 3 . . . . Shutdowns 2 | . . . . . . . . . . . . . . . . 1 1 . . . . Energy Bleed 2 | . . . . . . . . . . . . . . . . . 2 . . . . Interference 1 | . . . . 1 . . . . . . . . . . . . . . . . . Siege Activations . | . . . . . . . . . . . . . . . . . . . . . . Robots Corrupted . | . . . . . . . . . . . . . . . . . . . . . . Combat Hostiles . | . . . . . . . . . . . . . . . . . . . . . . Parts Fried 1 | . . . . . . . . . . . . . . . . . . . . . 1 Impact Corruptions . | . . . . . . . . . . . . . . . . . . . . . . Robots Melted . | . . . . . . . . . . . . . . . . . . . . . . Combat Hostiles . | . . . . . . . . . . . . . . . . . . . . . . Parts Melted 1 | . . . . . . . . . . . . . . . . 1 . . . . . Heat Transferred 783 | . . . . . . . . . . . 200 . . . . 250 . . . . 333 Parts Sabotaged 4 | . . . . . . . . . . . . . . 4 . . . . . . . Parts Stolen . | . . . . . . . . . . . . . . . . . . . . . . Parts Stripped . | . . . . . . . . . . . . . . . . . . . . . . Power Chain Reactions . | . . . . . . . . . . . . . . . . . . . . . . Missiles Intercepted . | . . . . . . . . . . . . . . . . . . . . . . Alert | -11 -10 -9 -9 -8 -7 -6 -6 -6 -6 -5 -5 -5 -5 -5 -4 -4 -4 -4 -3 -2 -1 ------- Run | Scr Mat Mat Min Mat Fac Fac Low Low Dat Pro Fac Upp Upp War Pro Fac Upp Upp Res Res Acc Peak Influence 553 | . 70 218 52 435 60 29 . . . . 553 . . . . 495 . . 99 111 404 Average Influence 152 | . 18 73 17 282 60 29 . . . . 225 . . . . 134 . . 40 64 201 Maximum Alert Level 2 | . . 1 . 2 . . . . . . 2 . . . . 2 . . . . 2 Low Security (%) 70 | 100 100 98 100 30 100 100 . . . . 57 . . . . 84 . . 100 100 46 Level 1 19 | . . 1 . 44 . . . . . . 8 . . . . 11 . . . . 50 Level 2 10 | . . . . 24 . . . . . . 34 . . . . 3 . . . . 2 Level 3 . | . . . . . . . . . . . . . . . . . . . . . . Level 4 . | . . . . . . . . . . . . . . . . . . . . . . Level 5 . | . . . . . . . . . . . . . . . . . . . . . . High Security . | . . . . . . . . . . . . . . . . . . . . . . Max Security . | . . . . . . . . . . . . . . . . . . . . . . Squads Dispatched 23 | . . 1 . 2 2 . . . . . 2 . . . 1 5 . . 1 1 8 Investigation . | . . . . . . . . . . . . . . . . . . . . . . Extermination 12 | . . . . . 1 . . . . . 2 . . . . 5 . . 1 . 3 Reinforcement 7 | . . 1 . 2 1 . . . . . . . . . . . . . . 1 2 Assault 1 | . . . . . . . . . . . . . . . 1 . . . . . . Garrison 3 | . . . . . . . . . . . . . . . . . . . . . 3 Intercept . | . . . . . . . . . . . . . . . . . . . . . . Construction Impeded 1 | . . . . . . . . . . . . . . . . . . . . . 1 Haulers Reinforced 1 | . . . . . 1 . . . . . . . . . . . . . . . . Stealth | -11 -10 -9 -9 -8 -7 -6 -6 -6 -6 -5 -5 -5 -5 -5 -4 -4 -4 -4 -3 -2 -1 --------- Run | Scr Mat Mat Min Mat Fac Fac Low Low Dat Pro Fac Upp Upp War Pro Fac Upp Upp Res Res Acc Distress Signals 13 | . . . . 3 . . . . . . . . . . . 2 . . . 5 3 Communications Jammed . | . . . . . . . . . . . . . . . . . . . . . . Distress Signals . | . . . . . . . . . . . . . . . . . . . . . . Times Spotted 281 | . 5 8 3 36 . . 4 6 . 13 18 4 6 25 29 44 11 2 6 6 55 Peak Tracking Total 13 | . 3 2 1 6 1 . 4 5 . 4 5 2 5 13 8 9 6 2 2 3 10 Tactical Retreats 22 | . 1 . . 3 . . . . . 2 1 . 2 2 . 4 2 . . . 5 Traps | -11 -10 -9 -9 -8 -7 -6 -6 -6 -6 -5 -5 -5 -5 -5 -4 -4 -4 -4 -3 -2 -1 ------- Run | Scr Mat Mat Min Mat Fac Fac Low Low Dat Pro Fac Upp Upp War Pro Fac Upp Upp Res Res Acc Traps Triggered 1 | . 1 . . . . . . . . . . . . . . . . . . . . Indirectly . | . . . . . . . . . . . . . . . . . . . . . . Trap Hack Attempts . | . . . . . . . . . . . . . . . . . . . . . . Triggered . | . . . . . . . . . . . . . . . . . . . . . . Disarmed . | . . . . . . . . . . . . . . . . . . . . . . Reprogrammed 1 | . . 1 . . . . . . . . . . . . . . . . . . . Reused . | . . . . . . . . . . . . . . . . . . . . . . Traps Extracted . | . . . . . . . . . . . . . . . . . . . . . . Installed . | . . . . . . . . . . . . . . . . . . . . . . Triggered 17 | . . . . . . . . 2 . 1 . . . 13 . . . 1 . . . Machines | -11 -10 -9 -9 -8 -7 -6 -6 -6 -6 -5 -5 -5 -5 -5 -4 -4 -4 -4 -3 -2 -1 ---------- Run | Scr Mat Mat Min Mat Fac Fac Low Low Dat Pro Fac Upp Upp War Pro Fac Upp Upp Res Res Acc Machines Disabled 27 | . . . . . . . . . . . 20 . . . 1 2 2 . . 1 1 Max in Single Turn 20 | . . . . . . . . . . . 20 . . . 1 2 1 . . 1 1 Garrison Access 2 | . . . . . . . . . . . 1 . . . . . . . . . 1 Machines Sabotaged . | . . . . . . . . . . . . . . . . . . . . . . Garrisons Compromised . | . . . . . . . . . . . . . . . . . . . . . . Overloaded Fab Kills . | . . . . . . . . . . . . . . . . . . . . . . Fab Network Shutdowns . | . . . . . . . . . . . . . . . . . . . . . . Hacking | -11 -10 -9 -9 -8 -7 -6 -6 -6 -6 -5 -5 -5 -5 -5 -4 -4 -4 -4 -3 -2 -1 --------- Run | Scr Mat Mat Min Mat Fac Fac Low Low Dat Pro Fac Upp Upp War Pro Fac Upp Upp Res Res Acc Machines Accessed 35 | . . 4 . 5 1 . . . 4 . 6 1 . 4 . 1 1 . 2 1 5 Terminals 19 | . . 3 . 5 1 . . . . . 5 . . . . . . . 2 1 2 Fabricators 1 | . . . . . . . . . . . . . . . . . . . . . 1 Repair Stations 1 | . . . . . . . . . . . . . . . . 1 . . . . . Recycling Units . | . . . . . . . . . . . . . . . . . . . . . . Scanalyzers 1 | . . 1 . . . . . . . . . . . . . . . . . . . Garrison Access 3 | . . . . . . . . . . . 1 . . . . . . . . . 2 Total Hacks 108 | . . 16 . 21 2 . . . 28 . 15 1 . 10 . 1 1 . 2 2 9 Successful 75 | . . 11 . 11 . . . . 28 . 9 1 . 10 . . 1 . . 1 3 Failed 33 | . . 5 . 10 2 . . . . . 6 . . . . 1 . . 2 1 6 Catastrophic 7 | . . . . 2 . . . . . . 1 . . . . 1 . . 1 . 2 Database Lockouts . | . . . . . . . . . . . . . . . . . . . . . . Manual 28 | . . 4 . 9 2 . . . . . 9 . . 1 . . . . 2 . 1 Terminals 57 | . . 14 . 21 2 . . . . . 13 . . . . . . . 2 2 3 Fabricators 3 | . . . . . . . . . . . . . . . . . . . . . 3 Repair Stations 1 | . . . . . . . . . . . . . . . . 1 . . . . . Recycling Units . | . . . . . . . . . . . . . . . . . . . . . . Scanalyzers 2 | . . 2 . . . . . . . . . . . . . . . . . . . Garrison Access 5 | . . . . . . . . . . . 2 . . . . . . . . . 3 Terminal Hacks 58 | . . 7 . 6 . . . . 28 . 3 1 . 10 . . 1 . . 1 1 Record 21 | . . . . . . . . . 11 . . . . 9 . . 1 . . . . Part Schematic 8 | . . . . . . . . . 8 . . . . . . . . . . . . Robot Schematic 6 | . . . . . . . . . 6 . . . . . . . . . . . . Prototype ID Bank 6 | . . 1 . 2 . . . . 3 . . . . . . . . . . . . Open Door 2 | . . . . . . . . . . . . 1 . 1 . . . . . . . Alert Level 1 | . . 1 . . . . . . . . . . . . . . . . . . . Unreport Threat 9 | . . 3 . 2 . . . . . . 2 . . . . . . . . 1 1 Reprogram Traps 1 | . . 1 . . . . . . . . . . . . . . . . . . . Dispatch Records 1 | . . 1 . . . . . . . . . . . . . . . . . . . Maintenance Status 1 | . . . . 1 . . . . . . . . . . . . . . . . . Hauler Manifests 1 | . . . . 1 . . . . . . . . . . . . . . . . . Registered Components 1 | . . . . . . . . . . . 1 . . . . . . . . . . Fabricator Hacks 1 | . . . . . . . . . . . . . . . . . . . . . 1 Load Schematic 1 | . . . . . . . . . . . . . . . . . . . . . 1 Repair Station Hacks . | . . . . . . . . . . . . . . . . . . . . . . Recycling Unit Hacks . | . . . . . . . . . . . . . . . . . . . . . . Scanalyzer 2 | . . 2 . . . . . . . . . . . . . . . . . . . Insert Component 1 | . . 1 . . . . . . . . . . . . . . . . . . . Analyze 1 | . . 1 . . . . . . . . . . . . . . . . . . . Garrison Access Hacks 2 | . . . . . . . . . . . 1 . . . . . . . . . 1 Seal Access 2 | . . . . . . . . . . . 1 . . . . . . . . . 1 Unauthorized Hacks 12 | . . 2 . 5 . . . . . . 5 . . . . . . . . . . Terminals 12 | . . 2 . 5 . . . . . . 5 . . . . . . . . . . Botnet 12 | . . 2 . 5 . . . . . . 5 . . . . . . . . . . Fabricators . | . . . . . . . . . . . . . . . . . . . . . . Repair Stations . | . . . . . . . . . . . . . . . . . . . . . . Recycling Units . | . . . . . . . . . . . . . . . . . . . . . . Scanalyzers . | . . . . . . . . . . . . . . . . . . . . . . Garrison Access . | . . . . . . . . . . . . . . . . . . . . . . Data Cores Recovered . | . . . . . . . . . . . . . . . . . . . . . . Used . | . . . . . . . . . . . . . . . . . . . . . . Hacking Detections 24 | . . 4 . 5 1 . . . . . 6 . . . . 1 . . 2 1 4 Full Trace Events 1 | . . . . 1 . . . . . . . . . . . . . . . . . Feedback Events . | . . . . . . . . . . . . . . . . . . . . . . Feedback Blocked . | . . . . . . . . . . . . . . . . . . . . . . Robot Schematics Acquired 6 | . . . . . . . . . 6 . . . . . . . . . . . . Robots Built . | . . . . . . . . . . . . . . . . . . . . . . Matter . | . . . . . . . . . . . . . . . . . . . . . . Time . | . . . . . . . . . . . . . . . . . . . . . . Total Robot Build Rating . | . . . . . . . . . . . . . . . . . . . . . . Part Schematics Acquired 9 | . . 1 . . . . . . 8 . . . . . . . . . . . . Parts Built . | . . . . . . . . . . . . . . . . . . . . . . Matter . | . . . . . . . . . . . . . . . . . . . . . . Time . | . . . . . . . . . . . . . . . . . . . . . . Total Part Build Rating . | . . . . . . . . . . . . . . . . . . . . . . Parts Repaired . | . . . . . . . . . . . . . . . . . . . . . . Time . | . . . . . . . . . . . . . . . . . . . . . . Parts Recycled . | . . . . . . . . . . . . . . . . . . . . . . Recycled Matter . | . . . . . . . . . . . . . . . . . . . . . . Retrieved Matter . | . . . . . . . . . . . . . . . . . . . . . . Retrieved Components . | . . . . . . . . . . . . . . . . . . . . . . Parts Scanalyzed 1 | . . 1 . . . . . . . . . . . . . . . . . . . Part Schematics Acquired 1 | . . 1 . . . . . . . . . . . . . . . . . . . Parts Damaged . | . . . . . . . . . . . . . . . . . . . . . . Bothacking | -11 -10 -9 -9 -8 -7 -6 -6 -6 -6 -5 -5 -5 -5 -5 -4 -4 -4 -4 -3 -2 -1 ------------ Run | Scr Mat Mat Min Mat Fac Fac Low Low Dat Pro Fac Upp Upp War Pro Fac Upp Upp Res Res Acc Used RIF Installer . | . . . . . . . . . . . . . . . . . . . . . . Robots Hacked . | . . . . . . . . . . . . . . . . . . . . . . Non-combat . | . . . . . . . . . . . . . . . . . . . . . . Combat . | . . . . . . . . . . . . . . . . . . . . . . Robot Hacks Applied . | . . . . . . . . . . . . . . . . . . . . . . Relay Couplers Released . | . . . . . . . . . . . . . . . . . . . . . . Robots Rewired 4 | . . . . . . . . . . . . . . 3 1 . . . . . . Allies Hacked . | . . . . . . . . . . . . . . . . . . . . . . Hacks Repelled . | . . . . . . . . . . . . . . . . . . . . . . Allies | -11 -10 -9 -9 -8 -7 -6 -6 -6 -6 -5 -5 -5 -5 -5 -4 -4 -4 -4 -3 -2 -1 -------- Run | Scr Mat Mat Min Mat Fac Fac Low Low Dat Pro Fac Upp Upp War Pro Fac Upp Upp Res Res Acc Total Allies 5 | . . . . . . . . . . 1 . . . 3 1 . . . . . . Largest Group 3 | . . . . . . . . . . 1 . . . 3 1 1 . . . . . Highest-Rated Group 152 | . . . . . . . . . . 94 . . . 152 60 47 . . . . . Highest-Rated Ally 94 | . . . . . . . . . . 94 . . . 60 60 47 . . . . . Total Orders 5 | . . . . . . . . . . . . . . 5 . . . . . . . GOTO 3 | . . . . . . . . . . . . . . 3 . . . . . . . ROAM 1 | . . . . . . . . . . . . . . 1 . . . . . . . FOLLOW 1 | . . . . . . . . . . . . . . 1 . . . . . . . Ally Attacks 34 | . . . . . . . . . . 10 . . . 17 . 7 . . . . . Total Damage 902 | . . . . . . . . . . 190 . . . 430 . 282 . . . . . Kills 6 | . . . . . . . . . . 2 . . . 2 . 2 . . . . . Allies Corrupted . | . . . . . . . . . . . . . . . . . . . . . . Allies Melted . | . . . . . . . . . . . . . . . . . . . . . . Intel | -11 -10 -9 -9 -8 -7 -6 -6 -6 -6 -5 -5 -5 -5 -5 -4 -4 -4 -4 -3 -2 -1 ------- Run | Scr Mat Mat Min Mat Fac Fac Low Low Dat Pro Fac Upp Upp War Pro Fac Upp Upp Res Res Acc Robot Analysis Total . | . . . . . . . . . . . . . . . . . . . . . . Derelict Logs Recovered 11 | . . . 2 . . . . . . 3 . 2 . . 1 . 1 2 . . . Drone Launches . | . . . . . . . . . . . . . . . . . . . . . . Drone Recoveries . | . . . . . . . . . . . . . . . . . . . . . . Decoded 0b10 Intel 78 | . . . . . . . . . . . . . . . . 33 . . 14 8 23 Items 78 | . . . . . . . . . . . . . . . . 33 . . 14 8 23 Exploration | -11 -10 -9 -9 -8 -7 -6 -6 -6 -6 -5 -5 -5 -5 -5 -4 -4 -4 -4 -3 -2 -1 ------------- Run | Scr Mat Mat Min Mat Fac Fac Low Low Dat Pro Fac Upp Upp War Pro Fac Upp Upp Res Res Acc Turns Passed 15038 | 60 350 423 332 1141 251 149 340 395 103 1280 1306 802 413 1005 1226 1584 944 497 712 296 1429 Spaces Moved 8537 | 48 296 244 200 552 172 100 216 261 80 869 778 536 284 682 672 626 525 291 358 153 594 Core 42 | 5 . . . . . . . . . . . . . . . . . . . . 37 Treads 1249 | . . 2 . 8 . . . . . . . . . 6 379 558 . . . . 296 Legs 15 | . . . . . . . . . . . . . . . 3 . . . . . 12 Wheels 7114 | 43 296 242 200 544 172 100 216 261 80 869 778 536 284 676 290 68 525 291 358 153 132 Hover 117 | . . . . . . . . . . . . . . . . . . . . . 117 Flight . | . . . . . . . . . . . . . . . . . . . . . . Fastest Speed 50 | 50 90 90 120 120 130 130 130 130 130 130 130 125 135 135 135 150 150 150 160 160 50 Average Speed 142 | 87 91 117 120 134 132 130 130 130 130 130 134 138 135 136 158 184 152 159 160 164 163 Slowest Speed 270 | 100 100 200 120 200 160 130 130 130 130 130 140 140 135 240 240 200 160 160 160 170 270 Overloaded Moves . | . . . . . . . . . . . . . . . . . . . . . . Propulsion Burnouts . | . . . . . . . . . . . . . . . . . . . . . . Robots Hopped . | . . . . . . . . . . . . . . . . . . . . . . Cave-ins Triggered 1 | . . . . . . . . . . . . . . . . . . . . . 1 Exploration Rate (%) 38 | 3 34 21 42 39 5 4 37 50 68 92 19 73 38 92 81 14 64 38 12 4 17 Regions Visited 21 Branch Regions 11 Pre-discovered Areas 8 | . . . 1 . . . . . 1 1 . 1 . 3 . . 1 . . . . Known Exits Taken 4 | . 1 1 . 1 . . . . . . . 1 . . . . . . . . . Unknown Exits Taken 17 | 1 . . 1 . 1 1 1 1 1 1 1 . 1 1 1 1 1 1 1 1 . Scrap Searched 11 | . . . 3 . . . . 2 . 1 . . . . 3 . 1 1 . . . Spaces Dug 12 | . . . . . . . . . . . . . . . . 11 . . 1 . . Terrain Destroyed 612 | . . . . . . . . . . . 82 3 1 61 160 59 27 9 9 5 196 Melee 12 | . . . . . . . . . . . . . . . . 11 . . 1 . . Projectile 90 | . . . . . . . . . . . 1 3 1 2 3 4 27 9 8 5 27 AOE 510 | . . . . . . . . . . . 81 . . 59 157 44 . . . . 169 Actions | -11 -10 -9 -9 -8 -7 -6 -6 -6 -6 -5 -5 -5 -5 -5 -4 -4 -4 -4 -3 -2 -1 --------- Run | Scr Mat Mat Min Mat Fac Fac Low Low Dat Pro Fac Upp Upp War Pro Fac Upp Upp Res Res Acc Total 10370 | 60 359 357 288 809 189 112 263 282 79 967 955 571 295 729 746 894 590 305 466 186 868 Wait 904 | 2 39 83 85 123 5 6 43 6 . 65 64 15 6 1 19 129 7 4 88 22 92 Move 8516 | 47 295 243 199 551 171 99 215 260 79 868 777 535 283 681 671 625 524 290 357 152 594 Hop . | . . . . . . . . . . . . . . . . . . . . . . Pick Up 111 | 3 5 7 1 23 2 2 . . . 2 28 3 . 6 3 10 2 . 3 2 9 Fast Attach 95 | 6 4 3 . 5 2 . . . . 1 11 2 . 10 1 13 4 1 . 1 31 Attach 71 | . 1 . . 8 2 2 . 1 . 6 6 2 . . 7 10 2 2 3 2 17 Detach 12 | . . . . . 1 . . . . . . . . 2 . 4 1 . . 1 3 Swap 53 | 1 1 5 . 11 . . . . . 1 9 1 . 6 4 5 5 . 1 . 3 Drop 103 | . 6 5 1 20 3 . . . . . 28 5 . 5 . 16 4 . 1 1 8 Fire 380 | 1 8 11 2 68 3 3 5 15 . 24 32 8 6 7 37 27 33 8 12 5 65 Melee 108 | . . . . . . . . . . . . . . . . 55 8 . 1 . 44 Ram 2 | . . . . . . . . . . . . . . . . . . . . . 2 Kick . | . . . . . . . . . . . . . . . . . . . . . . Crush . | . . . . . . . . . . . . . . . . . . . . . . Escape Stasis . | . . . . . . . . . . . . . . . . . . . . . . Rewire 15 | . . . . . . . . . . . . . . 11 4 . . . . . . Trap . | . . . . . . . . . . . . . . . . . . . . . . Miscellaneous . | . . . . . . . . . . . . . . . . . . . . . . Route ------- -11/Scrapyard -10/Materials -9/Materials -9/Mines -8/Materials -7/Factory -6/Factory -6/Lower Caves -6/Lower Caves (discovered 2 exits: *Fac / *Dat) -6/Data Miner -5/Proximity Caves -5/Factory (discovered 2 exits: *Fac / *Upp) -5/Upper Caves -5/Upper Caves -5/Warlord -4/Proximity Caves -4/Factory (discovered 2 exits: *Res / *Upp) -4/Upper Caves -4/Upper Caves -3/Research (discovered 3 exits: *Res / *Tes x2) -2/Research -1/Access History --------- Turn | Location | Event 11 | -11/Scrapyard | Discovered new exit (range 16) 61 | -11/Scrapyard | Entered Materials 124 | -10/Materials | Discovered new exit (range 9) 147 | -10/Materials | Identified exit to Materials 304 | -10/Materials | Build established: Mutant 411 | -10/Materials | Entered another Materials area 411 | -9/Materials | Evolved 2 slots: Utility x2 724 | -9/Materials | Discovered new exit (range 17) 809 | -9/Materials | Identified exit to Mines 834 | -9/Materials | Entered Mines 861 | -9/Mines | Assembled infested the area 894 | -9/Mines | Met a Derelict bent on vengeance 1096 | -9/Mines | Build established: Scavenger-Mutant 1101 | -9/Mines | Learned location of Zion (-7) 1101 | -9/Mines | Discovered new exit (range 8) 1166 | -9/Mines | Entered Materials 1166 | -8/Materials | Evolved 2 slots: Weapon x2 1167 | -8/Materials | Identified exit to Factory 1458 | -8/Materials | Build established: Gunner 1524 | -8/Materials | Destroyed 11 combat bots 1532 | -8/Materials | Lost 3 parts (1u2w) 1923 | -8/Materials | Build established: Scavenger-Gunner 2307 | -8/Materials | Entered Factory 2307 | -7/Factory | Evolved 2 slots: Propulsion x1, Utility x1 2436 | -7/Factory | Build established: Scavenger-Tank 2523 | -7/Factory | Discovered new exit (range 8) 2558 | -7/Factory | Entered another Factory area 2558 | -6/Factory | Evolved 2 slots: Propulsion x1, Weapon x1 2644 | -6/Factory | Discovered new exit (range 7) 2707 | -6/Factory | Entered Lower Caves 3038 | -6/Lower Caves | Discovered new exit (range 4) 3047 | -6/Lower Caves | Entered another Lower Caves area 3075 | -6/Lower Caves | Discovered new exit (range 14) 3422 | -6/Lower Caves | Discovered new exit (range 5) 3442 | -6/Lower Caves | Entered Data Miner 3442 | -6/Data Miner | Discovered new exit (range 6) 3467 | -6/Data Miner | Met Data Miner 3496 | -6/Data Miner | Learned location of Section 7 (-2) 3496 | -6/Data Miner | Acquired the access code to Warlord's prototype stash 3517 | -6/Data Miner | Received God Mode back door access code from Data Miner 3545 | -6/Data Miner | Entered Proximity Caves 3560 | -5/Proximity Caves | Escorted by Enhanced Grunt 3860 | -5/Proximity Caves | Spotted B-75 Beast 4237 | -5/Proximity Caves | Learned Factory stockpile data 4376 | -5/Proximity Caves | Learned Factory non-interactive machine intel 4391 | -5/Proximity Caves | Learned location of Armory (-4) 4428 | -5/Proximity Caves | Destroyed B-75 Beast 4542 | -5/Proximity Caves | Received a Behemoth hack from an annoying Tinkerer 4773 | -5/Proximity Caves | Lost 3 parts (1n2w) 4819 | -5/Proximity Caves | Discovered new exit (range 4) 4825 | -5/Proximity Caves | Entered Factory 4825 | -5/Factory | Evolved 2 slots: Utility x1, Weapon x1 4827 | -5/Factory | Loaded intel: 256 non-interactive machine locations 4961 | -5/Factory | Discovered new exit (range 12) 5130 | -5/Factory | Build established: Hauler-Executioner 5625 | -5/Factory | Found Powered Armor 6101 | -5/Factory | Discovered new exit (range 5) 6131 | -5/Factory | Entered Upper Caves 6187 | -5/Upper Caves | Identified exit to Upper Caves 6902 | -5/Upper Caves | Attracted the attention of an 0b10 checkpoint 6933 | -5/Upper Caves | Entered another Upper Caves area 7339 | -5/Upper Caves | Discovered new exit (range 5) 7346 | -5/Upper Caves | Entered Warlord 7392 | -5/Warlord | System corruption cleaned by Quarantine Array 7553 | -5/Warlord | Learned 4 Research zone layouts 7553 | -5/Warlord | Learned Research security intel 7553 | -5/Warlord | Learned Quarantine security intel 7553 | -5/Warlord | Learned Research terminal intel 7553 | -5/Warlord | Learned location of Testing (-3) 7553 | -5/Warlord | Learned location of Quarantine (-2) 7553 | -5/Warlord | Learned Testing trap positions 7889 | -5/Warlord | Visited the Vortex Lab 7889 | -5/Warlord | Warlord's base attacked by MAIN.C 7902 | -5/Warlord | Found Prototype Piercing Weapon 7902 | -5/Warlord | Identified Vortex Lance 7912 | -5/Warlord | Found Vortex Lance 7917 | -5/Warlord | Found Prototype Energy Gun 7920 | -5/Warlord | Found Prototype Energy Gun 7921 | -5/Warlord | Identified Vortex Rail (x2) 8001 | -5/Warlord | Met Warlord 8020 | -5/Warlord | Opened Warlord's prototype stash 8025 | -5/Warlord | Found Prototype Reactor 8031 | -5/Warlord | Found Prototype Device 8031 | -5/Warlord | Identified Exp. Cloaking Device 8039 | -5/Warlord | Found Prototype Device 8039 | -5/Warlord | Identified Exp. Focal Shield 8210 | -5/Warlord | Warlord forces counterattacked 8226 | -5/Warlord | Spotted Executioner 8226 | -5/Warlord | Spotted Executioner 8234 | -5/Warlord | Destroyed Executioner 8238 | -5/Warlord | Destroyed Executioner 8263 | -5/Warlord | Destroyed 7 combat bots 8314 | -5/Warlord | Destroyed 7 combat bots 8334 | -5/Warlord | Discovered new exit (range 13) 8351 | -5/Warlord | Entered Proximity Caves 8351 | -4/Proximity Caves | Accompanied by 1 ally 8868 | -4/Proximity Caves | Lost 3 parts (2n1w) 8997 | -4/Proximity Caves | Learned 8 Research zone layouts 9313 | -4/Proximity Caves | Lost 6 parts (1n1u4w) 9423 | -4/Proximity Caves | Attracted the attention of an 0b10 outpost 9449 | -4/Proximity Caves | Discovered new exit (range 9) 9461 | -4/Proximity Caves | Destroyed 9 combat bots 9562 | -4/Proximity Caves | Build established: Hauler-Mutant 9577 | -4/Proximity Caves | Entered Factory 9577 | -4/Factory | Accompanied by 1 ally 9577 | -4/Factory | Evolved 2 slots: Power x1, Utility x1 9578 | -4/Factory | Identified Vortex Chain Reactor 9886 | -4/Factory | Discovered new exit (range 16) 10699 | -4/Factory | System corruption reached 10% 10877 | -4/Factory | Lost 3 parts (2u1w) 11134 | -4/Factory | Discovered new exit (range 13) 11161 | -4/Factory | Entered Upper Caves 11182 | -4/Upper Caves | Found Alien Artifact 11182 | -4/Upper Caves | Identified Dimensional Node Initializer 11182 | -4/Upper Caves | Initialized slip node 11262 | -4/Upper Caves | Attracted the attention of an 0b10 checkpoint 11384 | -4/Upper Caves | Spotted B-86 Titan 11472 | -4/Upper Caves | Attacked by a delusional Derelict stockpiling parts 11543 | -4/Upper Caves | Build established: Hauler-Executioner 11845 | -4/Upper Caves | Encountered a Warlord checkpoint 12090 | -4/Upper Caves | Discovered new exit (range 9) 12105 | -4/Upper Caves | Entered another Upper Caves area 12294 | -4/Upper Caves | Learned 4 Research zone layouts 12559 | -4/Upper Caves | Discovered new exit (range 16) 12594 | -4/Upper Caves | Learned Research trap positions 12602 | -4/Upper Caves | Entered Research 12602 | -3/Research | Evolved 2 slots: Utility x2 12603 | -3/Research | Identified exit to Testing 12605 | -3/Research | Loaded intel: 79 trap records 12607 | -3/Research | Loaded intel: 18 terminal locations 12763 | -3/Research | Discovered exit to Testing (range 5) 13085 | -3/Research | Spotted B-86 Titan 13297 | -3/Research | Discovered new exit (range 6) 13314 | -3/Research | Entered another Research area 13314 | -2/Research | Warlord forces began assault on 0b10 13314 | -2/Research | Evolved 2 slots: Propulsion x1, Utility x1 13424 | -2/Research | Research machine network offline 13466 | -2/Research | Discovered new exit (range 15) 13532 | -2/Research | Build established: Hauler-Gunner 13610 | -2/Research | Entered Access 13610 | -1/Access | Evolved 2 slots: Propulsion x1, Utility x1 13969 | -1/Access | Found Unknown Protection 13969 | -1/Access | Identified Imp. Powered Armor 14078 | -1/Access | Garrison activated, responded to threat 14131 | -1/Access | Lost 5 parts (1n1u3w) 14138 | -1/Access | Found Fusion Bomb Launcher 14411 | -1/Access | Crushed by falling debris 14411 | -1/Access | System corruption reached 10% 14457 | -1/Access | Destroyed 7 combat bots 14462 | -1/Access | Lost 6 parts (1p1n2u2w) 14674 | -1/Access | Lost 13 parts (2p3n4u4w) 14742 | -1/Access | System corruption reached 30% 14754 | -1/Access | Core integrity fell below 50% 14782 | -1/Access | Lost 3 parts (1n2u) 15029 | -1/Access | Core integrity fell below 20% 15039 | -1/Access | Destroyed by S-43 Plague with Heavy Machine Gun Last Messages --------------- 15017_ Acquired Mic. Fission Core. 15017_ Adv. Heat Sink destroyed. 15017_ Imp. Antigrav System destroyed. 15020_ System corrupted: Energy discharge (-53). 15020_ Imp. Antigrav System destroyed. 15022_ Acquired Imp. Antigrav System. 15023_ Imp. Antigrav System destroyed. 15025_ Slammed into G-73 Enforcer. 15025_ Imp. Antigrav System destroyed. 15027_ Slammed into G-73 Enforcer. 15027_ Destabilizing: System corrupted (+2). 15027_ Imp. Antigrav System destroyed. 15027_ R-10 Processor collects Myomer Leg. 15028_ Adv. Cooling System destroyed. 15030_ Dropped Hcp. Storage Unit. 15030_ Critical hit. 15030_ Mic. Fission Core destroyed. 15030_ Dropped Hcp. Storage Unit. 15031_ Imp. Core Shielding destroyed. 15035_ Mic. Fission Core destroyed. Map ----- +----------------------------------------------------+ | ??????????""""" ??# #????????? | | ???????? ??"""" ??# #????????? | | ??????? "" ?# ""#????????? | | ??????? "" # ""#????????? | | ???????? # T"#????????? | | ???????? # ! ""#????????? | | ????????? # ""#????????? | | ????????? "" # =! #????????? | | ?????????? "" # * #????????? | | ?????? ?""""" #+########????????? | | ????? """""" #???????????????? | | ???? "" ########????????? | | ???? # ! #????????? | | ???? # !#????????? | | ???? =# #????????? | | ???? !%+ ! #????????? | | ??? !|# #????????? | | ??? !# #????????? | | ??? p ########????????? | | ??? #???????????????? | | ??? ^ #######?????????? | | ???? ps #?????????? | | ???? ^ s #?????????? | | ????? ^ ^ #?????????? | | ????? #?????????? | | ??=?? @#?????????? | | ?????? #?????????? | | ?????? #?????????? | | ???????################## #?????????? | | ????????????????????????# #?????????? | | ????????????????????????# #?????????? | | ???????????????????????? ?????????? | | ???????????????????????? ?????????? | | ???????????????????????? #????????? | | ????????????????????????#+##????????? | | ????????????????????????????????????? | | ????????????????????????????????????? | | ????????????????????????????????????? | | ????????????????????????????????????? | | ????????????????????????????????????? | | ????????????????????????????????????? | | ????????????????????????????????????? | | ????????????????????????????????????? | | ????????????????????????????????????? | | ????????????????????????????????????? | | ????????????????????????????????????? | | ????????????????????????????????????? | | ????????????????????????????????????? | | ????????????????????????????????????? | | ????????????????????????????????????? | +----------------------------------------------------+ Best States ------------- Heat Dissipation 102 Energy Generation 45 Energy Capacity 590 Matter Stores 524 Matter Capacity 550 Sight Range 18 Robot Scan Range 10 Terrain Scan Density 10 Armor Coverage 600 Resistance: KI 30 Core Shielding 30 Weapon Shielding 66 Weapon Cycling 30 Evasion (%) 53 Targeting Accuracy 32 Target Analysis 8 Core Analysis 10 Recoil Reduction 6 Matter Filtering 30 Kinecelleration 30 Item Schematics ----------------- Hcp. Storage Unit | -9/Materials | Scanalyzed Exp. Targeting Computer | -6/Data Miner | Free Combat Drone Bay | -6/Data Miner | Free Lgt. Regenerative Plating | -6/Data Miner | Free Exp. Sensor Array | -6/Data Miner | Free Exp. Transmission Jammer | -6/Data Miner | Free Cmb. Gravmag System | -6/Data Miner | Free Tactical Coordination Suite | -6/Data Miner | Free Plasma Sword | -6/Data Miner | Free Robot Schematics ------------------ S-27 Virus | -6/Data Miner | Free G-50 Soldier | -6/Data Miner | Free G-67 Veteran | -6/Data Miner | Free P-70 Sage | -6/Data Miner | Free I-36 Angel | -6/Data Miner | Free I-47 Archangel | -6/Data Miner | Free Fabricated ------------ Nothing Alien Tech Used ----------------- Dimensional Node Initializer Achievements -------------- None Challenges ------------ None Game ------ Seed DerelictCoilInjector Manual? 0 Play Time 01:55:11 Cumulative 138.5 hours Start 2020.08.27 @ 12:44:17 End 2020.08.30 @ 09:24:15 Sessions 4 Manual Loads 0 Difficulty Rogue Special Mode None Game No. 189 Rogue 146 Adventurer 3 Explorer 40 Win Type - Total 2 Types 1/1/0/0/0/0/0 Lore% 51 Gallery% 74 Achievement% 53 Wizard Run 0 Options --------- ASCII 0 Keyboard 0 Movement Mouse Keybinds 0 Fullscreen 2 Font 18/SmallcapsGlow Map View 76x50 Tactical HUD 1 Map Filters NONE Filters NONE Steam 1 RUN: 63551db2-bf19-4a18-9d20-9cdc92056766